{"text_format":"1","workbook":"xlsx","n_sheets":1,"sheets":["OR Builder"],"not_rendered":{"charts":0,"images":0,"macros":1,"external_links":0,"defined_names":0,"comments":0,"pivot_tables":0},"unopened":[],"bounds":{"document_bytes":16777216,"sheet_cells":100000,"rows_first":2000,"rows_last":500,"rows_between":2000,"halvings":0,"cell_chars":16384,"cell_head_chars":4096},"cells_cut":0,"cells_raw":0,"read":"whole","date_system":"1900"}

{"sheet":"OR Builder","index":0,"n_rows":129,"n_cols":4,"rows_kept":129,"cut":false,"hidden":false,"merged":[]}
["Wal-Mart",{"$f":"C$1&A1&\"\"\" OR \"","v":"\"Wal-Mart\" OR "},"\"",{"$f":"MultiCat(B1:B129)","v":"\"Wal-Mart\" OR \"Walmart\" OR \"Exxon\" OR \"ExxonMobil\" OR \"Chevron\" OR \"General Electric\" OR \"GE\" OR \"Bank of America\" OR \"ConocoPhillips\" OR \"AT&T\" OR \"Ford\" OR \"J.P. Morgan Chase\" OR \"JPMorgan\" OR \"JPMorganChase\" OR \"JP Morgan\" OR \"JPMC\" OR \"Hewlett-Packard\" OR \"HP\" OR \"Berkshire Hathaway\" OR \"Citigroup\" OR \"Citi\" OR \"Verizon\" OR \"McKesson\" OR \"General Motors\" OR \"GM\" OR \"American International Group\" OR \"AIG\" OR \"Cardinal Health\" OR \"CVS\" OR \"Wells Fargo\" OR \"International Business Machines\" OR \"IBM\" OR \"UnitedHealth\" OR \"United Health\" OR \"Procter & Gamble\" OR \"P&G\" OR \"Kroger\" OR \"AmerisourceBergen\" OR \"Amerisource Bergen\" OR \"Costco\" OR \"Valero\" OR \"Archer Daniels\" OR \"Boeing\" OR \"Home Depot\" OR \"Target\" OR \"WellPoint\" OR \"Walgreen\" OR \"Walgreens\" OR \"Johnson & Johnson\" OR \"J&J\" OR \"State Farm\" OR \"Medco\" OR \"Microsoft\" OR \"United Technologies\" OR \"Dell\" OR \"Goldman Sachs\" OR \"Pfizer\" OR \"Marathon Oil\" OR \"Lowe's\" OR \"Lowes\" OR \"United Parcel Service\" OR \"UPS\" OR \"Lockheed\" OR \"Best Buy\" OR \"Dow Chemical\" OR \"Supervalu\" OR \"Sears\" OR \"International Assets Holding\" OR \"PepsiCo\" OR \"Pepsi\" OR \"MetLife\" OR \"Met Life\" OR \"Safeway\" OR \"Kraft\" OR \"Freddie Mac\" OR \"Sysco\" OR \"Apple\" OR \"Disney\" OR \"Cisco\" OR \"Comcast\" OR \"FedEx\" OR \"Northrop\" OR \"Northrup\" OR \"Intel\" OR \"Aetna\" OR \"New York Life\" OR \"Prudential\" OR \"Caterpillar\" OR \"Sprint\" OR \"Allstate\" OR \"General Dynamics\" OR \"Morgan Stanley\" OR \"Liberty Mutual\" OR \"Coca-Cola\" OR \"CocaCola\" OR \"Humana\" OR \"Honeywell\" OR \"Abbott Laboratories\" OR \"Abbot Labs\" OR \"News Corp\" OR \"HCA\" OR \"Sunoco\" OR \"Hess\" OR \"Ingram Micro\" OR \"Fannie Mae\" OR \"Time Warner\" OR \"Johnson Controls\" OR \"Delta\" OR \"Merck\" OR \"DuPont\" OR \"Tyson Foods\" OR \"American Express\" OR \"Rite Aid\" OR \"RiteAid\" OR \"TIAA-CREF\" OR \"CHS\" OR \"Enterprise GP Holdings\" OR \"Massachusetts Mutual\" OR \"Mass Mutual\" OR \"MassMutual\" OR \"Philip Morris\" OR \"Raytheon\" OR \"Express Scripts\" OR \"Hartford Financial\" OR \"The Hartford\" OR \"Hartford Life\" OR \"Travelers\" OR \"Publix\" OR \"Amazon\" OR "}]
["Walmart",{"$f":"C$1&A2&\"\"\" OR \"","v":"\"Walmart\" OR "}]
["Exxon",{"$f":"C$1&A3&\"\"\" OR \"","v":"\"Exxon\" OR "}]
["ExxonMobil",{"$f":"C$1&A4&\"\"\" OR \"","v":"\"ExxonMobil\" OR "}]
["Chevron","\"Chevron\" OR "]
["General Electric","\"General Electric\" OR "]
["GE","\"GE\" OR "]
["Bank of America","\"Bank of America\" OR "]
["ConocoPhillips","\"ConocoPhillips\" OR "]
["AT&T","\"AT&T\" OR "]
["Ford","\"Ford\" OR "]
["J.P. Morgan Chase","\"J.P. Morgan Chase\" OR "]
["JPMorgan","\"JPMorgan\" OR "]
["JPMorganChase","\"JPMorganChase\" OR "]
["JP Morgan","\"JP Morgan\" OR "]
["JPMC","\"JPMC\" OR "]
["Hewlett-Packard","\"Hewlett-Packard\" OR "]
["HP","\"HP\" OR "]
["Berkshire Hathaway","\"Berkshire Hathaway\" OR "]
["Citigroup","\"Citigroup\" OR "]
["Citi","\"Citi\" OR "]
["Verizon","\"Verizon\" OR "]
["McKesson","\"McKesson\" OR "]
["General Motors","\"General Motors\" OR "]
["GM","\"GM\" OR "]
["American International Group","\"American International Group\" OR "]
["AIG","\"AIG\" OR "]
["Cardinal Health","\"Cardinal Health\" OR "]
["CVS","\"CVS\" OR "]
["Wells Fargo","\"Wells Fargo\" OR "]
["International Business Machines","\"International Business Machines\" OR "]
["IBM","\"IBM\" OR "]
["UnitedHealth","\"UnitedHealth\" OR "]
["United Health","\"United Health\" OR "]
["Procter & Gamble","\"Procter & Gamble\" OR "]
["P&G",{"$f":"C$1&A36&\"\"\" OR \"","v":"\"P&G\" OR "}]
["Kroger","\"Kroger\" OR "]
["AmerisourceBergen","\"AmerisourceBergen\" OR "]
["Amerisource Bergen","\"Amerisource Bergen\" OR "]
["Costco","\"Costco\" OR "]
["Valero","\"Valero\" OR "]
["Archer Daniels","\"Archer Daniels\" OR "]
["Boeing","\"Boeing\" OR "]
["Home Depot","\"Home Depot\" OR "]
["Target","\"Target\" OR "]
["WellPoint","\"WellPoint\" OR "]
["Walgreen","\"Walgreen\" OR "]
["Walgreens","\"Walgreens\" OR "]
["Johnson & Johnson","\"Johnson & Johnson\" OR "]
["J&J","\"J&J\" OR "]
["State Farm","\"State Farm\" OR "]
["Medco","\"Medco\" OR "]
["Microsoft","\"Microsoft\" OR "]
["United Technologies","\"United Technologies\" OR "]
["Dell","\"Dell\" OR "]
["Goldman Sachs","\"Goldman Sachs\" OR "]
["Pfizer","\"Pfizer\" OR "]
["Marathon Oil","\"Marathon Oil\" OR "]
["Lowe's","\"Lowe's\" OR "]
["Lowes","\"Lowes\" OR "]
["United Parcel Service","\"United Parcel Service\" OR "]
["UPS","\"UPS\" OR "]
["Lockheed","\"Lockheed\" OR "]
["Best Buy","\"Best Buy\" OR "]
["Dow Chemical","\"Dow Chemical\" OR "]
["Supervalu","\"Supervalu\" OR "]
["Sears",{"$f":"C$1&A67&\"\"\" OR \"","v":"\"Sears\" OR "}]
["International Assets Holding","\"International Assets Holding\" OR "]
["PepsiCo","\"PepsiCo\" OR "]
["Pepsi","\"Pepsi\" OR "]
["MetLife","\"MetLife\" OR "]
["Met Life","\"Met Life\" OR "]
["Safeway","\"Safeway\" OR "]
["Kraft","\"Kraft\" OR "]
["Freddie Mac","\"Freddie Mac\" OR "]
["Sysco","\"Sysco\" OR "]
["Apple","\"Apple\" OR "]
["Disney","\"Disney\" OR "]
["Cisco","\"Cisco\" OR "]
["Comcast","\"Comcast\" OR "]
["FedEx","\"FedEx\" OR "]
["Northrop","\"Northrop\" OR "]
["Northrup","\"Northrup\" OR "]
["Intel","\"Intel\" OR "]
["Aetna","\"Aetna\" OR "]
["New York Life","\"New York Life\" OR "]
["Prudential","\"Prudential\" OR "]
["Caterpillar","\"Caterpillar\" OR "]
["Sprint","\"Sprint\" OR "]
["Allstate","\"Allstate\" OR "]
["General Dynamics","\"General Dynamics\" OR "]
["Morgan Stanley","\"Morgan Stanley\" OR "]
["Liberty Mutual","\"Liberty Mutual\" OR "]
["Coca-Cola","\"Coca-Cola\" OR "]
["CocaCola","\"CocaCola\" OR "]
["Humana","\"Humana\" OR "]
["Honeywell","\"Honeywell\" OR "]
["Abbott Laboratories","\"Abbott Laboratories\" OR "]
["Abbot Labs","\"Abbot Labs\" OR "]
["News Corp","\"News Corp\" OR "]
["HCA","\"HCA\" OR "]
["Sunoco","\"Sunoco\" OR "]
["Hess","\"Hess\" OR "]
["Ingram Micro","\"Ingram Micro\" OR "]
["Fannie Mae","\"Fannie Mae\" OR "]
["Time Warner","\"Time Warner\" OR "]
["Johnson Controls","\"Johnson Controls\" OR "]
["Delta","\"Delta\" OR "]
["Merck","\"Merck\" OR "]
["DuPont","\"DuPont\" OR "]
["Tyson Foods","\"Tyson Foods\" OR "]
["American Express","\"American Express\" OR "]
["Rite Aid","\"Rite Aid\" OR "]
["RiteAid","\"RiteAid\" OR "]
["TIAA-CREF","\"TIAA-CREF\" OR "]
["CHS","\"CHS\" OR "]
["Enterprise GP Holdings","\"Enterprise GP Holdings\" OR "]
["Massachusetts Mutual","\"Massachusetts Mutual\" OR "]
["Mass Mutual","\"Mass Mutual\" OR "]
["MassMutual","\"MassMutual\" OR "]
["Philip Morris","\"Philip Morris\" OR "]
["Raytheon","\"Raytheon\" OR "]
["Express Scripts","\"Express Scripts\" OR "]
["Hartford Financial","\"Hartford Financial\" OR "]
["The Hartford","\"The Hartford\" OR "]
["Hartford Life","\"Hartford Life\" OR "]
["Travelers","\"Travelers\" OR "]
["Publix","\"Publix\" OR "]
["Amazon","\"Amazon\" OR "]